bitfinex/quotes_BTCUSD_20250908
["timestamp","ask_amount","ask_price","bid_price","bid_amount"]
[1757305004713,0.37426813,111150.0,111140.0,0.35993918]
[1757305004948,0.19433111,111150.0,111140.0,0.36206918]
[1757305005326,0.19120111,111150.0,111140.0,0.36206918]
[1757305005535,0.19120111,111150.0,111140.0,0.36106918]
[1757305005757,0.19120111,111150.0,111140.0,0.36006918]
[1757305006654,0.18903111,111150.0,111140.0,0.36006918]
[1757305006859,0.18903111,111150.0,111140.0,0.36305918]
[1757305007503,0.52308857,111160.0,111150.0,0.17993702]
[1757305007712,0.56332968,111160.0,111150.0,0.17993702]
[1757305008963,0.56532968,111160.0,111150.0,0.17993702]
[1757305009414,0.56632968,111160.0,111150.0,0.17993702]
[1757305010555,0.00304663,111160.0,111150.0,0.18510702]
[1757305011197,0.00304663,111160.0,111150.0,0.27702301]
[1757305011407,0.19107774,111160.0,111150.0,0.30404663]
[1757305011842,0.19007774,111160.0,111150.0,0.30404663]
[1757305012005,0.19207774,111160.0,111150.0,0.30404663]
[1757305012282,0.19107774,111160.0,111150.0,0.30404663]
[1757305012500,0.18907774,111160.0,111150.0,0.30504663]
[1757305012723,0.18907774,111160.0,111150.0,0.30604663]
[1757305013204,4.663e-05,111160.0,111150.0,0.30604663]
[1757305015045,0.18907774,111160.0,111150.0,0.30604663]
[1757305016155,4.663e-05,111160.0,111150.0,0.30604663]
[1757305016541,0.18907774,111160.0,111150.0,0.30604663]
[1757305019574,0.18907774,111160.0,111150.0,0.45696663]
[1757305020160,0.18907774,111160.0,111150.0,0.30604663]
[1757305020360,0.18907774,111160.0,111150.0,0.45696663]
[1757305026349,0.18907774,111160.0,111150.0,0.30604663]
[1757305026586,0.18907774,111160.0,111150.0,0.45692663]
[1757305027879,0.38020885,111160.0,111150.0,0.30290663]
[1757305028116,0.38344885,111160.0,111150.0,0.45175663]
[1757305028743,0.00538663,111160.0,111150.0,0.45175663]
[1757305029094,0.19441774,111160.0,111150.0,0.45175663]
[1757305031520,0.56336968,111160.0,111150.0,0.35984064]
[1757305031758,0.59058968,111160.0,111150.0,0.17990362]
[1757305032226,0.93050079,111160.0,111150.0,0.02902362]
[1757305032358,0.93050079,111160.0,111150.0,0.002]
[1757305032561,0.74146968,111160.0,111150.0,0.002]
[1757305033189,0.74146968,111160.0,111150.0,0.001]
[1757305034244,0.74146968,111160.0,111140.0,0.35786031]
[1757305034450,0.19508262,111150.0,111140.0,0.35786031]
[1757305034690,0.37220813,111150.0,111140.0,0.17790809]
[1757305034901,0.37430813,111150.0,111140.0,0.3578613]
[1757305035321,0.37430813,111150.0,111140.0,0.17790809]
[1757305035532,0.56333924,111150.0,111140.0,0.17790809]
[1757305035744,0.56333924,111150.0,111140.0,0.17890809]
[1757305036088,0.56333924,111150.0,111140.0,0.17790809]
[1757305036680,0.55728439,111150.0,111140.0,0.02702809]
[1757305036910,0.58450439,111150.0,111140.0,0.17786809]
[1757305037125,0.58450439,111150.0,111140.0,0.15084]
[1757305038047,0.58450439,111150.0,111140.0,0.15184]
[1757305038254,0.58450439,111150.0,111140.0,0.1788696]
[1757305038421,0.58450439,111150.0,111140.0,0.1778696]
[1757305038834,0.58774439,111150.0,111140.0,0.1778696]
[1757305039786,0.02932,111150.0,111140.0,0.36299281]
[1757305039987,0.22116262,111150.0,111140.0,0.36299281]
[1757305040181,0.21835111,111150.0,111140.0,0.36299281]
[1757305041459,0.39828813,111150.0,111140.0,0.36299281]
[1757305041671,0.39828813,111150.0,111140.0,0.35985281]
[1757305043859,0.39828813,111150.0,111140.0,0.35782281]
[1757305045342,0.40150813,111150.0,111140.0,0.35782281]
[1757305046816,0.39828813,111150.0,111140.0,0.35782281]
[1757305050214,0.39828813,111150.0,111140.0,0.35987281]
[1757305051253,0.39828813,111150.0,111140.0,0.35782281]
[1757305051611,0.40150813,111150.0,111140.0,0.35782281]
[1757305054570,0.39828813,111150.0,111140.0,0.35782281]
[1757305054997,0.39828813,111150.0,111140.0,0.35987281]
[1757305055380,0.39828813,111150.0,111140.0,0.1799196]
[1757305055580,0.39828813,111150.0,111140.0,0.35987281]
[1757305055991,0.20925702,111150.0,111140.0,0.36288281]
[1757305056211,0.39828813,111150.0,111140.0,0.35987281]
[1757305057418,0.21835111,111150.0,111140.0,0.35987281]
[1757305057624,0.18903111,111150.0,111140.0,0.36288281]
[1757305058707,0.34004663,111160.0,111150.0,0.17993702]
[1757305058870,0.18907774,111160.0,111150.0,0.18198702]
[1757305059083,0.18907774,111160.0,111150.0,0.18499702]
[1757305059740,0.18907774,111160.0,111150.0,0.21202129]
[1757305060403,4.663e-05,111160.0,111150.0,0.21202129]
[1757305067635,4.663e-05,111160.0,111150.0,0.30393728]
[1757305070749,4.663e-05,111160.0,111150.0,0.3248761]
[1757305070976,4.663e-05,111160.0,111150.0,0.51387523]
[1757305071185,4.663e-05,111160.0,111150.0,0.51587523]
[1757305071838,4.663e-05,111160.0,111150.0,0.66663523]
[1757305073097,4.663e-05,111160.0,111150.0,1.00663523]
[1757305073501,4.663e-05,111160.0,111150.0,0.85587523]
[1757305073751,4.663e-05,111160.0,111150.0,1.00663523]
[1757305073961,4.663e-05,111160.0,111150.0,0.6668761]
[1757305074180,4.663e-05,111160.0,111150.0,1.00663523]
[1757305074404,4.663e-05,111160.0,111150.0,0.85587523]
[1757305074619,4.663e-05,111160.0,111150.0,1.00663523]
[1757305074842,4.663e-05,111160.0,111150.0,0.6668761]
[1757305075051,4.663e-05,111160.0,111150.0,0.8176361]
[1757305079117,0.16861565,111180.0,111170.0,0.17990465]
[1757305079326,0.35345222,111180.0,111170.0,0.33062465]
[1757305079543,0.35064147,111180.0,111170.0,0.33262465]
[1757305079963,0.35064147,111180.0,111170.0,0.35964409]
[1757305080169,0.17974672,111180.0,111170.0,0.35964409]
[1757305080785,0.1727523,111180.0,111170.0,0.35964409]
[1757305080992,0.17556305,111180.0,111170.0,0.35964409]
[1757305081208,0.17556305,111180.0,111170.0,0.36271409]
[1757305081662,0.17656305,111180.0,111170.0,0.36271409]
[1757305083456,0.17447305,111180.0,111170.0,0.36271409]
[1757305083680,0.19485653,111180.0,111170.0,0.36271409]
[1757305083861,0.19204578,111180.0,111170.0,0.36271409]
[1757305085475,0.00304665,111180.0,111170.0,0.36271409]
[1757305087077,0.00513665,111180.0,111170.0,0.35764409]
[1757305087288,0.19694653,111180.0,111170.0,0.35764409]
[1757305087509,0.19413578,111180.0,111170.0,0.36271409]
[1757305088123,0.19413578,111180.0,111170.0,0.35764409]
[1757305088328,0.37719424,111180.0,111170.0,0.35764409]
[1757305088571,0.59382337,111180.0,111170.0,0.17773944]
[1757305088819,0.40482424,111180.0,111170.0,0.17773944]
[1757305094730,0.40482424,111180.0,111170.0,0.02701944]
[1757305094944,0.40482424,111180.0,111170.0,0.17769944]
[1757305096974,0.59382337,111180.0,111170.0,0.17769944]
[1757305097679,0.40482424,111180.0,111170.0,0.17769944]
[1757305098311,0.40482424,111180.0,111170.0,0.35760409]
[1757305103955,0.40482424,111180.0,111170.0,0.17769944]
[1757305104333,0.40482424,111180.0,111170.0,0.02701944]
[1757305104559,0.40482424,111180.0,111170.0,0.17769944]
[1757305105594,0.40482424,111180.0,111170.0,0.02701944]
[1757305105825,0.40482424,111180.0,111170.0,0.17769944]
[1757305106290,0.59382337,111180.0,111170.0,0.17769944]
[1757305106528,0.59382337,111180.0,111170.0,0.15068]
[1757305110090,0.21265511,111180.0,111170.0,0.15068]
[1757305110290,0.40165424,111180.0,111170.0,0.33058465]
[1757305110634,0.40468424,111180.0,111170.0,0.33058465]
[1757305110845,0.40165424,111180.0,111170.0,0.33269465]
[1757305111289,0.40165424,111180.0,111170.0,0.15279]
[1757305112666,0.40165424,111180.0,111170.0,0.15068]
[1757305113311,0.40468424,111180.0,111170.0,0.15068]
[1757305114396,0.40165424,111180.0,111170.0,0.15068]
[1757305115435,0.40468424,111180.0,111170.0,0.15068]
[1757305118025,0.40165424,111180.0,111170.0,0.33269465]
[1757305118234,0.40165424,111180.0,111170.0,0.33586465]
[1757305118456,0.40165424,111180.0,111170.0,0.15596]
[1757305118666,0.40165424,111180.0,111170.0,0.15279]
[1757305119722,0.40165424,111180.0,111170.0,0.33269465]
[1757305120107,0.40165424,111180.0,111170.0,0.33586465]
[1757305121888,0.37402424,111180.0,111170.0,0.33586465]
[1757305122343,0.56297647,111180.0,111170.0,0.33586465]
[1757305122983,0.56297647,111180.0,111170.0,0.15279]
[1757305130308,0.56297647,111180.0,111170.0,0.15068]
[1757305133767,0.56088647,111180.0,111170.0,0.33566465]
[1757305133981,0.56088647,111180.0,111170.0,0.36268658]
[1757305135733,0.56296647,111180.0,111170.0,0.36268658]
[1757305135949,0.56156647,111180.0,111170.0,0.36268658]
[1757305136389,0.55676647,111180.0,111170.0,0.36268658]
[1757305136788,0.53676647,111180.0,111170.0,0.36268658]
[1757305137203,0.37094414,111180.0,111170.0,0.36268658]
[1757305137419,0.55991982,111180.0,111170.0,0.36268658]
[1757305137610,0.54991982,111180.0,111170.0,0.36268658]
[1757305138072,0.54391981,111180.0,111170.0,0.35760658]
[1757305138772,0.54391981,111180.0,111170.0,0.17770193]
[1757305139936,0.54391981,111180.0,111170.0,0.35975658]
[1757305140174,0.54391981,111180.0,111170.0,0.36268658]
[1757305140426,0.54713981,111180.0,111170.0,0.17770193]
[1757305140893,0.54713981,111180.0,111170.0,0.02702193]
[1757305141098,0.54713981,111180.0,111170.0,0.17762193]
[1757305141398,0.16596845,111180.0,111170.0,0.17762193]
[1757305141609,0.1687792,111180.0,111170.0,0.36260658]
[1757305141823,0.54465056,111180.0,111170.0,0.36260658]
[1757305142030,0.54183981,111180.0,111170.0,0.36260658]
[1757305144936,0.34,111190.0,111180.0,0.17988846]
[1757305145153,0.70884797,111190.0,111180.0,0.18203846]
[1757305145364,0.18897568,111190.0,111180.0,0.18496846]
[1757305145785,0.78964516,111200.0,111180.0,0.18496846]
[1757305145988,0.97862084,111200.0,111190.0,0.1506]
[1757305146194,1.12964516,111200.0,111190.0,0.15275]
[1757305146418,1.50759652,111200.0,111190.0,0.15275]
[1757305146619,1.50967652,111200.0,111190.0,0.15568]
[1757305147232,1.51067652,111200.0,111190.0,0.15568]
[1757305147442,1.51067652,111200.0,111190.0,0.1506]
[1757305147921,1.51367652,111200.0,111190.0,0.1506]
[1757305149101,1.51267652,111200.0,111190.0,0.1506]
[1757305149869,1.07557652,111200.0,111190.0,0.1506]
[1757305152133,1.07557652,111200.0,111180.0,0.36039629]
[1757305152358,0.18897568,111190.0,111180.0,0.36039629]
[1757305152691,0.8094926,111160.0,111150.0,0.7815208]
[1757305152893,0.8094926,111160.0,111150.0,1.12325313]
[1757305153315,0.8094926,111160.0,111150.0,1.15027097]
[1757305153738,0.8094926,111160.0,111150.0,1.07965885]
[1757305154541,0.8094926,111160.0,111150.0,1.08165885]
[1757305154719,0.8094926,111160.0,111150.0,1.08458885]
[1757305154910,0.8094926,111160.0,111150.0,1.08658885]
[1757305157794,0.8094926,111160.0,111150.0,1.09761683]
[1757305175401,0.8094926,111160.0,111150.0,1.17839005]
[1757305178885,0.8094926,111160.0,111150.0,0.98941437]
[1757305179089,0.8094926,111160.0,111150.0,1.17839005]
[1757305179608,0.60271499,111160.0,111150.0,1.17839005]
[1757305179842,0.60271499,111160.0,111150.0,1.09761683]
[1757305184455,0.60271499,111160.0,111150.0,1.09754688]
[1757305186099,0.60271499,111160.0,111150.0,1.09750688]
[1757305205687,0.60271499,111160.0,111150.0,0.94698688]
[1757305205893,0.60271499,111160.0,111150.0,1.09746688]
[1757305211420,0.18245842,111160.0,111150.0,1.36714583]
[1757305211643,0.18245842,111160.0,111150.0,1.33637261]
[1757305211875,0.07425212,111200.0,111190.0,0.17987229]
[1757305212097,0.07425212,111200.0,111190.0,0.33035229]
[1757305212321,0.07640212,111200.0,111190.0,0.33035229]
[1757305212544,0.28501875,111200.0,111190.0,0.33035229]
[1757305212746,0.21440663,111200.0,111190.0,0.33035229]
[1757305212949,0.19569573,111200.0,111190.0,0.35736733]
[1757305213186,0.19869573,111200.0,111190.0,0.35736733]
[1757305213409,0.19569573,111200.0,111190.0,0.35736733]
[1757305213663,0.37555184,111200.0,111190.0,0.35736733]
[1757305213870,0.37555184,111200.0,111190.0,0.35836733]
[1757305214020,0.19469573,111200.0,111190.0,0.35836733]
[1757305214455,0.21442017,111200.0,111190.0,0.35836733]
[1757305215419,0.19669573,111200.0,111190.0,0.35836733]
[1757305215995,0.37655184,111200.0,111190.0,0.35836733]
[1757305216882,0.39625275,111200.0,111190.0,0.35836733]
[1757305218829,0.39625275,111200.0,111190.0,0.02801504]
[1757305219246,0.39625275,111200.0,111190.0,0.17845504]
[1757305228238,0.42617275,111200.0,111190.0,0.17845504]
[1757305228459,0.42617275,111200.0,111190.0,0.15144]
[1757305229770,0.42617275,111200.0,111190.0,0.001]
[1757305229771,0.57661275,111200.0,111190.0,0.001]
[1757305230169,0.57661275,111200.0,111190.0,0.15144]
[1757305232069,0.57661275,111200.0,111190.0,0.001]
[1757305232276,0.57661275,111200.0,111190.0,0.15144]
[1757305232474,0.57661275,111200.0,111190.0,0.001]
[1757305232745,0.57661275,111200.0,111190.0,0.15144]
[1757305233320,0.57661275,111200.0,111190.0,0.001]
[1757305233945,1.19743447,111200.0,111190.0,0.001]
[1757305234143,1.21682026,111200.0,111190.0,0.001]
[1757305234936,1.24384109,111200.0,111190.0,0.001]
[1757305238051,0.37409038,111170.0,111160.0,0.42650789]
[1757305238249,0.37409038,111170.0,111160.0,0.27610789]
[1757305238512,0.37409038,111170.0,111160.0,0.42650789]
[1757305239693,0.37409038,111170.0,111160.0,0.42850789]
[1757305240097,0.37409038,111170.0,111160.0,0.43054789]
[1757305242782,0.37409038,111170.0,111160.0,0.43050789]
[1757305243846,0.19418573,111170.0,111160.0,0.43050789]
[1757305245123,0.37409038,111170.0,111160.0,0.43050789]
[1757305246313,0.37409038,111170.0,111160.0,0.10018706]
[1757305246559,0.59312615,111170.0,111160.0,0.25058706]
[1757305246769,0.59312615,111170.0,111160.0,0.43050789]
[1757305246950,0.4041154,111170.0,111160.0,0.43050789]
[1757305247358,0.4041154,111170.0,111160.0,0.25058706]
[1757305248586,0.59312615,111170.0,111160.0,0.00404665]
[1757305248789,0.59312615,111170.0,111160.0,0.15444665]
[1757305249139,0.59312615,111170.0,111160.0,0.00404665]
[1757305249367,0.59312615,111170.0,111160.0,0.15444665]
[1757305249565,0.59312615,111170.0,111160.0,0.15244665]
[1757305249992,0.59312615,111170.0,111160.0,0.15044665]
[1757305252121,0.39669529,111170.0,111160.0,0.15044665]
[1757305252327,0.39878529,111170.0,111160.0,0.15044665]
[1757305253290,0.57868994,111170.0,111160.0,0.15044665]
[1757305254139,0.58186994,111170.0,111160.0,0.15044665]
[1757305254363,0.58186994,111170.0,111160.0,0.33036748]
[1757305254575,0.73226994,111170.0,111160.0,0.33036748]
[1757305254972,0.73226994,111170.0,111160.0,0.15044665]
[1757305256989,0.02702383,111180.0,111170.0,0.34]
[1757305257190,0.18941075,111200.0,111190.0,0.17987229]
[1757305257391,0.0004,111200.0,111190.0,0.33530229]
[1757305257608,0.18941075,111200.0,111190.0,0.33530229]
[1757305258029,0.18941075,111200.0,111190.0,0.36231782]
[1757305258235,0.0004,111200.0,111190.0,0.36231782]
[1757305259512,0.0004,111200.0,111190.0,0.45423381]
[1757305259839,0.0034,111200.0,111190.0,0.45423381]
[1757305260042,0.0004,111200.0,111190.0,0.45423381]
[1757305261291,0.0004,111200.0,111190.0,0.64324456]
[1757305261481,0.0004,111200.0,111190.0,0.45423381]
[1757305263743,0.0004,111200.0,111190.0,0.45523381]
[1757305264321,0.0004,111200.0,111190.0,0.45623381]
[1757305272221,0.18941075,111200.0,111190.0,0.45623381]
[1757305272833,0.18941075,111200.0,111190.0,0.30583381]
[1757305273038,0.18941075,111200.0,111190.0,0.45615381]
[1757305273661,0.18941075,111200.0,111190.0,0.30583381]
[1757305273880,0.18941075,111200.0,111190.0,0.45615381]
[1757305279260,0.0004,111200.0,111190.0,0.45615381]
[1757305280817,0.0004,111200.0,111190.0,0.64516456]
[1757305281820,0.0004,111200.0,111190.0,0.45615381]
[1757305283056,0.18941075,111200.0,111190.0,0.45615381]
[1757305284093,0.18941075,111200.0,111190.0,0.30583381]
[1757305284236,0.19142075,111200.0,111190.0,0.45615381]
[1757305284444,0.18941075,111200.0,111190.0,0.45615381]
[1757305285340,0.18941075,111200.0,111190.0,0.52523381]
[1757305291753,0.0004,111200.0,111190.0,0.52523381]
[1757305291975,0.18941075,111200.0,111190.0,0.52523381]
[1757305299451,0.0004,111200.0,111190.0,0.52523381]
[1757305299729,0.18941075,111200.0,111190.0,0.52523381]
[1757305302327,0.0004,111200.0,111190.0,0.52523381]
[1757305302539,0.18941075,111200.0,111190.0,0.52523381]
[1757305305480,0.0004,111200.0,111190.0,0.52523381]
[1757305305714,0.18941075,111200.0,111190.0,0.52523381]
[1757305308308,0.0004,111200.0,111190.0,0.52523381]
[1757305311573,0.02095074,111210.0,111200.0,0.17985611]
[1757305311792,0.02580073,111210.0,111200.0,0.17985611]
[1757305311984,0.02659872,111210.0,111200.0,0.17985611]
[1757305312784,0.0270653,111210.0,111200.0,0.17985611]
[1757305320526,0.19496364,111210.0,111200.0,0.18522611]
[1757305320773,0.00126457,111210.0,111200.0,0.18522611]
[1757305321225,0.00611456,111210.0,111200.0,0.18198611]
[1757305321917,0.00611456,111210.0,111200.0,0.17985611]
[1757305322122,0.1889045,111210.0,111190.0,0.34410828]
[1757305322377,0.37494359,111210.0,111200.0,0.15024]
[1757305322597,0.37494359,111210.0,111190.0,0.2489473]
[1757305322864,0.36870519,111200.0,111190.0,0.06908]
[1757305323094,0.37165519,111200.0,111190.0,0.39919229]
[1757305323337,0.19088908,111200.0,111190.0,0.39919229]
[1757305324474,0.19088908,111200.0,111190.0,0.40132229]
[1757305324666,0.00204,111200.0,111190.0,0.40556229]
[1757305325559,0.00204,111200.0,111190.0,0.40656229]
[1757305326828,0.00204,111200.0,111190.0,0.40119229]
[1757305327298,0.00204,111200.0,111190.0,0.40656229]
[1757305329137,0.00204,111200.0,111190.0,0.40332229]
[1757305330717,0.00204,111200.0,111190.0,0.40119229]
[1757305331112,0.19088908,111200.0,111190.0,0.40119229]
[1757305331658,0.37369519,111200.0,111190.0,0.40119229]
[1757305331923,0.19088908,111200.0,111190.0,0.40656229]
[1757305332138,0.19088908,111200.0,111190.0,0.40332229]
[1757305332353,0.19383908,111200.0,111190.0,0.40119229]
[1757305332998,0.37369519,111200.0,111190.0,0.40119229]
[1757305333413,0.19383908,111200.0,111190.0,0.40119229]
[1757305333633,0.37369519,111200.0,111190.0,0.40119229]
[1757305335807,0.19383908,111200.0,111190.0,0.40119229]
[1757305336442,0.00204,111200.0,111190.0,0.40656229]
[1757305336662,0.19369933,111200.0,111190.0,0.40656229]
[1757305336883,0.19088908,111200.0,111190.0,0.40656229]
[1757305337108,0.00204,111200.0,111190.0,0.40332229]
[1757305337354,0.00485025,111200.0,111190.0,0.40332229]
[1757305337603,0.00485025,111200.0,111190.0,0.40656229]
[1757305337916,0.00485025,111200.0,111190.0,0.40332229]
[1757305338143,0.00204,111200.0,111190.0,0.40656229]
[1757305339932,0.00204,111200.0,111190.0,0.40332229]
[1757305341309,0.00204,111200.0,111190.0,0.40119229]
[1757305341532,0.00485025,111200.0,111190.0,0.40119229]
[1757305341770,0.00796025,111200.0,111190.0,0.40119229]
[1757305343034,0.18781636,111200.0,111190.0,0.40119229]
[1757305343243,0.18500611,111200.0,111190.0,0.40119229]
[1757305346146,0.18500611,111200.0,111190.0,0.40171229]
[1757305347345,0.18500611,111200.0,111190.0,0.07108]
[1757305347550,0.18500611,111200.0,111190.0,0.40163229]
[1757305351504,0.18189611,111200.0,111190.0,0.40163229]
[1757305353409,0.18500611,111200.0,111190.0,0.40163229]
[1757305354094,0.22013611,111200.0,111190.0,0.002]
[1757305354343,0.84090118,111200.0,111190.0,0.002]
[1757305354563,0.86028687,111200.0,111190.0,0.002]
[1757305355439,0.86028687,111200.0,111190.0,0.001]
[1757305355879,0.90117513,111200.0,111190.0,0.001]
[1757305356058,0.17988846,111180.0,111170.0,0.15963523]
[1757305356773,0.18199846,111180.0,111170.0,0.33953988]
[1757305356984,0.18199846,111180.0,111170.0,0.34157988]
[1757305357431,0.18199846,111180.0,111170.0,0.34257988]
[1757305357878,0.18199846,111180.0,111170.0,0.34357988]
[1757305358591,0.17988846,111180.0,111170.0,0.34664988]
[1757305358994,0.18199846,111180.0,111170.0,0.34657553]
[1757305359228,0.18199846,111180.0,111170.0,0.34448954]
[1757305359641,0.18199846,111180.0,111170.0,0.34141954]
[1757305360850,0.18199846,111180.0,111170.0,0.16151489]
[1757305361461,0.18199846,111180.0,111170.0,0.15947489]
[1757305361931,0.21144754,111180.0,111170.0,0.15047966]
[1757305362725,0.21156414,111180.0,111170.0,0.15047966]
[1757305363961,0.21144754,111180.0,111170.0,0.15036306]
[1757305364996,0.18199846,111180.0,111170.0,0.15036306]
[1757305365202,0.18199846,111180.0,111170.0,0.15240306]
[1757305365410,0.18199846,111180.0,111170.0,0.33537771]
[1757305366075,0.55217502,111190.0,111170.0,0.33537771]
[1757305366076,0.20969594,111190.0,111170.0,0.52422679]
[1757305366516,0.20969594,111190.0,111170.0,0.33537771]
[1757305366744,0.21280594,111190.0,111170.0,0.33537771]
[1757305367148,0.20969594,111190.0,111170.0,0.33537771]
[1757305367574,0.21280594,111190.0,111170.0,0.33537771]
[1757305368057,0.21380594,111190.0,111170.0,0.33537771]
[1757305368551,0.001,111190.0,111180.0,0.37180754]
[1757305368764,0.001,111190.0,111180.0,0.53488353]
[1757305368985,0.002,111190.0,111180.0,0.53488353]
[1757305369651,0.00281025,111200.0,111190.0,0.17987229]
[1757305369866,0.1932065,111210.0,111190.0,0.33039229]
[1757305370088,0.23298292,111210.0,111190.0,0.33346229]
[1757305370313,0.00211,111200.0,111190.0,0.33243229]
[1757305370552,0.37665314,111200.0,111180.0,0.53282123]
[1757305370762,0.37384289,111200.0,111190.0,0.15052]
[1757305371168,0.40352184,111200.0,111190.0,0.15052]
[1757305372621,0.40552184,111200.0,111190.0,0.15052]
[1757305372832,0.40852184,111200.0,111190.0,0.15052]
[1757305376474,0.40852184,111200.0,111190.0,0.33039229]
[1757305376475,0.18696611,111200.0,111190.0,0.33039229]
[1757305378522,0.21665951,111200.0,111190.0,0.33039229]
[1757305380686,0.21665951,111200.0,111190.0,0.33541229]
[1757305380910,0.21665951,111200.0,111180.0,0.37098053]
[1757305381123,0.40853629,111200.0,111190.0,0.1504]
[1757305381700,0.21967951,111200.0,111190.0,0.1504]
[1757305381898,0.40853629,111200.0,111190.0,0.1504]
[1757305382146,0.40653629,111200.0,111190.0,0.1504]
[1757305382493,0.40853629,111200.0,111190.0,0.1504]
[1757305382682,0.40853629,111200.0,111190.0,0.33027229]
[1757305383085,0.40653629,111200.0,111190.0,0.33027229]
[1757305383437,0.40853629,111200.0,111190.0,0.33027229]
[1757305383869,0.40853629,111200.0,111180.0,0.37098053]
[1757305384077,0.18570279,111190.0,111180.0,0.27602454]
[1757305384294,0.18183229,111190.0,111180.0,0.61722132]
[1757305384522,0.18464279,111190.0,111180.0,0.61722132]
[1757305384731,0.18464279,111190.0,111180.0,0.46686132]
[1757305384911,0.18464279,111190.0,111180.0,0.61726132]
[1757305385605,0.18183229,111190.0,111180.0,0.39774132]
[1757305385825,0.18183229,111190.0,111180.0,0.54814132]
[1757305386476,0.18283229,111190.0,111180.0,0.54814132]
[1757305386936,0.00296,111190.0,111180.0,0.54814132]
[1757305387152,0.0057705,111190.0,111180.0,0.55118132]
[1757305387380,0.0067705,111190.0,111180.0,0.55118132]
[1757305388890,0.0048105,111190.0,111180.0,0.55118132]
[1757305391346,0.002,111190.0,111180.0,0.55118132]
[1757305398751,0.002,111190.0,111180.0,0.83195409]
[1757305408200,0.002,111190.0,111180.0,0.90107409]
[1757305409787,0.001,111190.0,111180.0,0.90107409]
[1757305411043,0.37895328,111210.0,111190.0,0.17985666]
[1757305411256,0.38100328,111210.0,111200.0,0.15235]
[1757305411462,0.38100328,111210.0,111200.0,0.15554]
[1757305412106,0.1921465,111210.0,111200.0,0.15554]
[1757305412298,0.38100328,111210.0,111200.0,0.15554]
[1757305412599,0.38400328,111210.0,111200.0,0.15554]
[1757305413211,0.38400328,111210.0,111200.0,0.15235]
[1757305413419,0.1951465,111210.0,111200.0,0.15235]
[1757305413674,0.38400328,111210.0,111200.0,0.15235]
[1757305413866,0.38400328,111210.0,111200.0,0.15554]
[1757305413867,0.38195328,111210.0,111200.0,0.15554]
[1757305414278,0.24184279,111220.0,111200.0,0.52425289]
[1757305414480,0.40380932,111220.0,111200.0,0.52425289]
[1757305414683,0.00079961,111210.0,111200.0,0.52425289]
[1757305415103,0.00079961,111210.0,111200.0,0.33539611]
[1757305415495,0.00079961,111210.0,111200.0,0.18507611]
[1757305415671,0.37435632,111210.0,111200.0,0.33216611]
[1757305415895,0.18268955,111210.0,111200.0,0.33535611]
[1757305416243,0.18568955,111210.0,111200.0,0.33535611]
[1757305416655,0.37454633,111210.0,111200.0,0.33535611]
[1757305417694,0.18568955,111210.0,111200.0,0.33535611]
[1757305420272,0.00584961,111210.0,111200.0,0.33535611]
[1757305420471,0.0086596,111210.0,111200.0,0.33535611]
[1757305421286,0.0106596,111210.0,111200.0,0.33535611]
[1757305421904,0.0086596,111210.0,111200.0,0.33535611]
[1757305422408,0.19751638,111210.0,111200.0,0.33535611]
[1757305422612,0.19670639,111210.0,111200.0,0.33535611]
[1757305423148,0.00784961,111210.0,111200.0,0.33535611]
[1757305424475,0.0106596,111210.0,111200.0,0.33535611]
[1757305429603,0.38242632,111210.0,111200.0,0.17985611]
[1757305429826,0.38242632,111210.0,111190.0,0.36614324]
[1757305429827,0.41227633,111210.0,111190.0,0.36614324]
[1757305430040,0.37369955,111210.0,111200.0,0.17985611]
[1757305430688,0.37369955,111210.0,111190.0,0.21586324]
[1757305430894,0.00281025,111200.0,111190.0,0.36614324]
[1757305431103,0.00281025,111200.0,111190.0,0.36938324]
[1757305431305,0.00495025,111200.0,111190.0,0.37148324]
[1757305431511,0.00495025,111200.0,111190.0,0.36614324]
[1757305432362,0.00495025,111200.0,111190.0,0.36824324]
[1757305432571,0.00595025,111200.0,111190.0,0.36824324]
[1757305432779,0.00595025,111200.0,111190.0,0.36614324]
[1757305433156,0.00894025,111200.0,111190.0,0.36614324]
[1757305433609,0.00595025,111200.0,111190.0,0.36614324]
[1757305433834,0.3776675,111200.0,111190.0,0.33015229]
[1757305434064,0.37485725,111200.0,111190.0,0.33015229]
[1757305434284,0.19500114,111200.0,111190.0,0.33015229]
[1757305434727,0.19500114,111200.0,111190.0,0.35716833]
[1757305434961,0.00613,111200.0,111190.0,0.35716833]
[1757305435180,0.00595025,111200.0,111190.0,0.35716833]
[1757305438145,0.001,111200.0,111190.0,0.36250833]
[1757305438370,0.001,111200.0,111190.0,0.55137947]
[1757305439024,0.001,111200.0,111190.0,0.64329546]
[1757305449516,0.001,111200.0,111190.0,0.66954363]
[1757305459095,0.001,111200.0,111190.0,0.48067249]
[1757305459284,0.001,111200.0,111190.0,0.66954363]
[1757305463305,0.001,111200.0,111190.0,0.69048245]
[1757305464151,0.00079961,111210.0,111200.0,0.17985611]
[1757305464357,0.00079961,111210.0,111200.0,0.61092324]
[1757305464556,0.00079961,111210.0,111200.0,0.61589324]
[1757305465001,0.00079961,111210.0,111200.0,0.64290232]
[1757305465648,0.00079961,111210.0,111200.0,0.49262232]
[1757305465812,0.00079961,111210.0,111200.0,0.64290232]
[1757305466828,0.00079961,111210.0,111200.0,0.64590232]
[1757305467860,0.00079961,111210.0,111200.0,0.64690232]
[1757305471780,0.00079961,111210.0,111200.0,0.71598232]
[1757305479807,0.00079961,111210.0,111200.0,0.56570232]
[1757305480018,0.00079961,111210.0,111200.0,0.71594232]
[1757305482470,0.00052584,111220.0,111210.0,0.17983994]
[1757305482707,0.00052584,111220.0,111210.0,0.61379707]
[1757305482922,0.00052584,111220.0,111210.0,0.61583707]
[1757305483146,0.00052584,111220.0,111210.0,0.64284532]
[1757305484061,0.00052584,111220.0,111210.0,0.64384532]
[1757305490431,0.00052584,111220.0,111210.0,0.64372663]
[1757305491188,0.00052584,111220.0,111210.0,0.8534179]
[1757305491407,0.00052584,111220.0,111210.0,0.51442545]
[1757305491646,0.00052584,111220.0,111210.0,0.66462545]
[1757305492719,0.00052584,111220.0,111210.0,0.66562545]
[1757305492927,0.00052584,111220.0,111210.0,0.66462545]
[1757305493130,0.00052584,111220.0,111210.0,0.66562545]
[1757305494331,0.00052584,111220.0,111210.0,0.66662545]
[1757305495191,0.00052584,111220.0,111210.0,0.477873]
[1757305495417,0.00052584,111220.0,111210.0,0.66662545]
[1757305498206,0.00052584,111220.0,111210.0,0.477873]
[1757305498401,0.00052584,111220.0,111210.0,0.66662545]
[1757305503407,0.00052584,111220.0,111210.0,0.51642545]
[1757305503581,0.38019074,111220.0,111210.0,0.30380418]
[1757305503789,0.38324074,111220.0,111210.0,0.30176418]
[1757305504097,0.19143829,111220.0,111210.0,0.45196418]
[1757305504347,0.19143829,111220.0,111210.0,0.45400418]
[1757305504561,0.00052584,111220.0,111210.0,0.45705418]
[1757305504767,0.18927829,111220.0,111210.0,0.45705418]
[1757305505388,0.00052584,111220.0,111210.0,0.45705418]
[1757305505742,0.18927829,111220.0,111210.0,0.45705418]